[Event "CZE-ch U14 2020"]
[Site "Kouty nad Desnou"]
[Date "2020.03.11"]
[Round "6.7"]
[White "Werner, Hong Quan Dan"]
[Black "Vaclavik, Jan"]
[Result "1-0"]
[ECO "B21"]
[WhiteElo "1801"]
[BlackElo "1791"]
[Annotator "NA RC"]
[PlyCount "61"]
[EventDate "2020.03.07"]
[EventCountry "CZE"]
[SourceTitle "playchess.com"]
[Source "ChessBase"]
[SourceQuality "1"]
[TimeControl "5400+30"]

{[%evp 9,49,-25,-18,32767,-22,-23,-29,-20,-60,-45,-45,-58,32767,32767,12,22,0,18,0,10,0,0,88,72,133,134,175,152,175,162,170,175,331,322,633,679,1210,1285,1231,1335,2283,1495]} 1. e4 {[%emt 0:00:00]} c5 {[%emt 0:00:00]} 2. d4 {[%emt 0:00:00]} cxd4 {[%emt 0:00:17]} 3. c3 {[%emt 0:00:10]} dxc3 {[%emt 0:00:06]} 4. Nxc3 {[%emt 0:00:08]} e6 {[%emt 0:02:08]} 5. Bc4 {[%emt 0:00:30]} Nc6 {[%emt 0:00:30]} 6. Nf3 {[%emt 0:00:54]} a6 {[%emt 0:00:17]} 7. O-O {[%emt 0:01:39]} b5 {[%emt 0:01:54]} 8. Bb3 {[%emt 0:01:56]} Bb7 {[%emt 0:01:10]} 9. a3 {[%emt 0:05:31] B21: Sicilian: 2 f4 and Morra Gambit.} Nge7 {[%emt 0:00:58]} 10. Bg5 {[%emt 0:00:49]} f6 {[%emt 0:37:42]} 11. Be3 {[%emt 0:03:38]} Ng6 {[%emt 0:12:05]} 12. Qe2 {[%emt 0:08:12]} Bd6 {[%emt 0:03:30]} 13. Rfd1 {[%emt 0:01:15]} Qe7 {[%emt 0:03:21]} 14. Qd2 {[%emt 0:00:34]} Bc7 {[%emt 0:01:09] [#]} 15. Rac1 $146 {[%emt 0:02:39]} ({Predecessor:} 15. Bc5 Bf4 16. Bxe7 Bxd2 17. Bxf6 Bh6 18. Bd4 Rc8 19. Bb6 Nce5 20. Nxe5 Nxe5 21. a4 b4 {½-½ (21) Alonso Gonzalez,C (2354)-Poulheim,K (2392) ICCF email 2008}) 15... d6 {[%emt 0:03:58]} (15... Rd8 $11 {remains equal.}) 16. Ne2 {[%emt 0:11:05]} Nge5 {[%emt 0:10:15]} 17. Nfd4 {[%emt 0:05:17]} Nxd4 {[%emt 0:01:27]} 18. Nxd4 {[%emt 0:00:08]} Nc4 {[%emt 0:00:59]} 19. Bxc4 {[%emt 0:00:36]} bxc4 {[%emt 0:00:03] [#]} 20. Qb4 $1 {[%emt 0:00:59] Double Attack} ({Don't do} 20. Rxc4 $6 Rc8 $16) 20... Bxe4 $2 {[%emt 0:00:59]} (20... d5) 21. Qxc4 {[%emt 0:00:11] Double Attack} Rc8 $2 {[%emt 0:03:56]} (21... O-O 22. Qxc7 Rfe8) 22. Nxe6 {[%emt 0:00:24]} Bb7 {[%emt 0:01:25]} 23. Nxc7+ {[%emt 0:00:24]} Rxc7 {[%emt 0:00:21]} 24. Qxc7 {[%emt 0:00:12]} Qe4 {[%emt 0:00:02]} 25. Qb8+ $18 {[%emt 0:00:25]} Kf7 {[%emt 0:00:14]} 26. Rc7+ {[%emt 0:00:03]} Kg6 {[%emt 0:00:17]} 27. Qxb7 {[%emt 0:00:08]} Qa4 {[%emt 0:00:28]} 28. Rxg7+ {[%emt 0:00:22]} Kh5 {[%emt 0:00:27]} 29. Qd5+ {[%emt 0:00:33]} Kh4 {[%emt 0:00:22]} 30. g3+ {[%emt 0:00:06]} Kh3 {[%emt 0:00:03]} 31. Qg2# 1-0

[Event "CZE-ch U14 2020"]
[Site "Kouty nad Desnou"]
[Date "2020.03.11"]
[Round "6.8"]
[White "Prochazka, Vojtech"]
[Black "Vilimek, Vit"]
[Result "1-0"]
[ECO "C89"]
[WhiteElo "1763"]
[BlackElo "1695"]
[Annotator "NA"]
[PlyCount "61"]
[EventDate "2020.03.07"]
[EventCountry "CZE"]
[SourceTitle "playchess.com"]
[Source "ChessBase"]
[SourceQuality "1"]
[TimeControl "5400+30"]

1. e4 {[%emt 0:00:00]} e5 2. Nf3 {[%emt 0:00:05]} Nc6 {[%emt 0:00:00]} 3. Bb5 {[%emt 0:00:41]} a6 {[%emt 0:01:14]} 4. Ba4 {[%emt 0:01:36]} Nf6 {[%emt 0:01:15]} 5. O-O {[%emt 0:01:10]} b5 {[%emt 0:00:25]} 6. Bb3 {[%emt 0:00:07]} Be7 {[%emt 0:00:12]} 7. Re1 {[%emt 0:04:04]} O-O {[%emt 0:00:29]} 8. c3 {[%emt 0:01:53]} d5 {[%emt 0:00:10]} 9. exd5 {[%emt 0:01:06]} Nxd5 {[%emt 0:00:08]} 10. Nxe5 {[%emt 0:02:18]} Nxe5 {[%emt 0:00:29]} 11. Rxe5 {[%emt 0:01:15]} c6 {[%emt 0:00:50]} 12. d4 {[%emt 0:00:42]} Bd6 {[%emt 0:00:05]} 13. Re1 {[%emt 0:01:29]} Qh4 {[%emt 0:00:04]} 14. g3 {[%emt 0:03:40]} Qh3 {[%emt 0:00:05]} 15. Qe2 {[%emt 0:09:46]} Bf5 {[%emt 0:03:23]} 16. Nd2 {[%emt 0:10:47]} Nf4 {[%emt 0:12:33]} 17. gxf4 {[%emt 0:14:55]} Bxf4 {[%emt 0:00:08]} 18. f3 {[%emt 0:00:38]} Qh4 {[%emt 0:25:21]} 19. Nf1 {[%emt 0:08:29]} Bd6 {[%emt 0:12:41]} 20. Qf2 {[%emt 0:04:00]} Qf6 {[%emt 0:02:25]} 21. Ng3 {[%emt 0:04:26]} Bh3 {[%emt 0:07:51]} 22. Bc2 {[%emt 0:02:57]} Rae8 {[%emt 0:03:00]} 23. Bd2 {[%emt 0:00:19]} Bf4 {[%emt 0:02:43]} 24. Bxf4 {[%emt 0:00:42]} Qxf4 {[%emt 0:00:05]} 25. Bd3 {[%emt 0:03:05]} Qg5 {[%emt 0:03:04]} 26. Kh1 {[%emt 0:01:11]} Qh4 {[%emt 0:00:06]} 27. Bf1 {[%emt 0:01:05]} Bd7 {[%emt 0:02:23]} 28. Kg1 {[%emt 0:00:21]} Qg5 {[%emt 0:00:07]} 29. Bg2 {[%emt 0:00:26]} f5 {[%emt 0:01:23]} 30. f4 {[%emt 0:00:14]} h5 {[%emt 0:01:15]} 31. fxg5 1-0

[Event "CZE-ch U14 2020"]
[Site "Kouty nad Desnou"]
[Date "2020.03.11"]
[Round "6.9"]
[White "Tajovsky, Simon"]
[Black "Zednicek, Filip"]
[Result "1-0"]
[ECO "D30"]
[WhiteElo "1512"]
[BlackElo "1365"]
[Annotator "NA"]
[PlyCount "125"]
[EventDate "2020.03.07"]
[EventCountry "CZE"]
[SourceTitle "playchess.com"]
[Source "ChessBase"]
[SourceQuality "1"]
[TimeControl "5400+30"]

1. d4 {[%emt 0:00:00]} d5 {[%emt 0:00:38]} 2. c4 {[%emt 0:00:00]} e6 {[%emt 0:01:28]} 3. cxd5 {[%emt 0:00:06]} exd5 {[%emt 0:00:18]} 4. Nc3 {[%emt 0:00:09]} Bf5 {[%emt 0:03:02]} 5. Qb3 {[%emt 0:01:49]} Qc8 {[%emt 0:02:17]} 6. Qxd5 {[%emt 0:03:29]} Be6 {[%emt 0:00:12]} 7. Qb5+ {[%emt 0:01:24]} c6 {[%emt 0:00:41]} 8. Qd3 {[%emt 0:01:00]} Bb4 {[%emt 0:02:05]} 9. Nf3 {[%emt 0:03:46]} Nf6 {[%emt 0:00:57]} 10. e4 {[%emt 0:03:38]} O-O {[%emt 0:05:29]} 11. Be2 {[%emt 0:01:38]} Nfd7 {[%emt 0:03:35]} 12. O-O {[%emt 0:01:52]} f5 {[%emt 0:00:26]} 13. exf5 {[%emt 0:02:30]} Bf7 {[%emt 0:02:38]} 14. Ng5 {[%emt 0:05:05]} Nb6 {[%emt 0:02:16]} 15. Nxf7 {[%emt 0:02:39]} Rxf7 {[%emt 0:00:09]} 16. Bg4 {[%emt 0:03:13]} Na6 {[%emt 0:03:29]} 17. Bf4 {[%emt 0:03:47]} c5 {[%emt 0:02:00]} 18. dxc5 {[%emt 0:02:04]} Nxc5 {[%emt 0:00:29]} 19. Qg3 {[%emt 0:01:19]} Bxc3 {[%emt 0:01:25]} 20. Qxc3 {[%emt 0:01:39]} Nd5 {[%emt 0:05:11]} 21. Qc4 {[%emt 0:01:40]} Nxf4 {[%emt 0:01:06]} 22. Qxf4 {[%emt 0:00:45]} Nd3 {[%emt 0:03:10]} 23. Qd2 {[%emt 0:04:22]} Qc4 {[%emt 0:00:56]} 24. Be2 {[%emt 0:02:49]} Rd8 {[%emt 0:01:15]} 25. Rac1 {[%emt 0:03:12]} Qd4 {[%emt 0:00:45]} 26. Rc3 {[%emt 0:05:12]} Nf4 {[%emt 0:01:44]} 27. Qc2 {[%emt 0:02:10]} Qd2 {[%emt 0:01:50]} 28. Qxd2 {[%emt 0:00:33]} Rxd2 {[%emt 0:00:05]} 29. Rc8+ {[%emt 0:00:55]} Rf8 {[%emt 0:00:07]} 30. Bc4+ {[%emt 0:00:47]} Nd5 {[%emt 0:00:08]} 31. Rc5 {[%emt 0:01:59]} Rd8 {[%emt 0:00:53]} 32. Rxd5 {[%emt 0:04:16]} R8xd5 {[%emt 0:00:23]} 33. g4 {[%emt 0:02:13]} Kf8 {[%emt 0:02:47]} 34. Bxd5 {[%emt 0:00:07]} Rxd5 {[%emt 0:00:03]} 35. Rc1 {[%emt 0:00:16]} Rd7 {[%emt 0:00:05]} 36. Kg2 {[%emt 0:00:41]} Ke8 {[%emt 0:00:29]} 37. Rc2 {[%emt 0:00:35]} Kf7 {[%emt 0:00:28]} 38. Kg3 {[%emt 0:00:35]} Kf6 {[%emt 0:00:14]} 39. Re2 {[%emt 0:00:33]} Rd6 {[%emt 0:00:38]} 40. Re6+ {[%emt 0:00:18]} Rxe6 {[%emt 0:00:06]} 41. fxe6 {[%emt 0:00:04]} Kxe6 42. Kf4 {[%emt 0:00:13]} Kf6 {[%emt 0:01:11]} 43. h4 {[%emt 0:00:09]} g6 {[%emt 0:01:51]} 44. Ke4 {[%emt 0:00:58]} Ke6 {[%emt 0:00:18]} 45. f4 {[%emt 0:00:15]} h6 {[%emt 0:00:49]} 46. f5+ {[%emt 0:00:57]} Kf6 {[%emt 0:00:39]} 47. fxg6 {[%emt 0:00:08]} Kxg6 {[%emt 0:00:01]} 48. Ke5 {[%emt 0:00:22]} b6 {[%emt 0:00:53]} 49. a4 {[%emt 0:00:13]} a6 {[%emt 0:00:39]} 50. b4 {[%emt 0:00:15]} Kf7 {[%emt 0:01:05]} 51. Kf5 {[%emt 0:00:17]} a5 {[%emt 0:00:41]} 52. b5 {[%emt 0:00:06]} Kg7 {[%emt 0:00:26]} 53. g5 {[%emt 0:00:11]} hxg5 {[%emt 0:00:54]} 54. hxg5 {[%emt 0:00:12]} Kf7 {[%emt 0:00:06]} 55. g6+ {[%emt 0:00:07]} Kg7 {[%emt 0:00:01]} 56. Ke6 {[%emt 0:00:21]} Kxg6 {[%emt 0:00:03]} 57. Kd6 {[%emt 0:00:06]} Kf6 {[%emt 0:00:40]} 58. Kc6 {[%emt 0:00:03]} Ke5 {[%emt 0:00:03]} 59. Kxb6 {[%emt 0:00:05]} Kd6 {[%emt 0:03:53]} 60. Kxa5 {[%emt 0:00:05]} Kc7 {[%emt 0:00:01]} 61. b6+ {[%emt 0:00:40]} Kb7 {[%emt 0:00:08]} 62. Kb5 {[%emt 0:00:08]} Kb8 {[%emt 0:00:25]} 63. Kc6 {[%emt 0:00:06]} 1-0

[Event "CZE-ch U14 2020"]
[Site "Kouty nad Desnou"]
[Date "2020.03.11"]
[Round "6.10"]
[White "Mohapl, Tomas"]
[Black "Richter, Rudolf"]
[Result "1/2-1/2"]
[ECO "B01"]
[WhiteElo "1654"]
[BlackElo "1555"]
[Annotator "NA"]
[PlyCount "76"]
[EventDate "2020.03.07"]
[EventCountry "CZE"]
[SourceTitle "playchess.com"]
[Source "ChessBase"]
[SourceQuality "1"]
[TimeControl "5400+30"]

1. e4 {[%emt 0:00:00]} d5 {[%emt 0:00:00]} 2. exd5 {[%emt 0:00:00]} Qxd5 {[%emt 0:00:00]} 3. Nc3 {[%emt 0:00:09]} Qd6 {[%emt 0:00:00]} 4. Bc4 {[%emt 0:01:31]} Nf6 {[%emt 0:00:23]} 5. d3 {[%emt 0:01:36]} c6 {[%emt 0:05:11]} 6. Be3 {[%emt 0:04:41]} Bg4 {[%emt 0:02:25]} 7. Nge2 {[%emt 0:04:35]} e6 {[%emt 0:05:19]} 8. O-O {[%emt 0:02:43]} Qc7 {[%emt 0:00:24]} 9. h3 {[%emt 0:02:44]} Bf5 {[%emt 0:04:42]} 10. Bf4 {[%emt 0:05:47]} Bd6 {[%emt 0:01:52]} 11. Bxd6 {[%emt 0:00:46]} Qxd6 {[%emt 0:00:09]} 12. Ng3 {[%emt 0:01:21]} Bg6 {[%emt 0:00:55]} 13. Re1 {[%emt 0:06:18]} Nbd7 {[%emt 0:04:16]} 14. Nge4 {[%emt 0:04:04]} Nxe4 {[%emt 0:04:16]} 15. Nxe4 {[%emt 0:00:45]} Bxe4 {[%emt 0:00:37]} 16. Rxe4 {[%emt 0:02:01]} Nf6 {[%emt 0:00:09]} 17. Re2 {[%emt 0:00:45]} O-O {[%emt 0:04:49]} 18. Rd2 {[%emt 0:08:22]} Rad8 {[%emt 0:06:21]} 19. Qe2 {[%emt 0:03:28]} Nd5 {[%emt 0:01:41]} 20. Rad1 {[%emt 0:07:13]} b5 {[%emt 0:02:37]} 21. Bxd5 {[%emt 0:02:37]} exd5 {[%emt 0:00:47]} 22. Re1 {[%emt 0:01:33]} Qd7 {[%emt 0:00:36]} 23. Qf3 {[%emt 0:03:59]} Rfe8 {[%emt 0:01:43]} 24. Rde2 {[%emt 0:00:11]} Rxe2 {[%emt 0:00:48]} 25. Qxe2 {[%emt 0:00:08]} Kf8 {[%emt 0:00:56]} 26. d4 {[%emt 0:02:26]} Re8 {[%emt 0:01:25]} 27. Qxe8+ {[%emt 0:00:32]} Qxe8 {[%emt 0:00:16]} 28. Rxe8+ {[%emt 0:00:05]} Kxe8 {[%emt 0:00:11]} 29. b4 {[%emt 0:03:04]} a6 {[%emt 0:00:20]} 30. Kh2 {[%emt 0:00:50]} Ke7 {[%emt 0:00:25]} 31. Kg3 {[%emt 0:01:01]} f6 {[%emt 0:04:10]} 32. Kf4 {[%emt 0:02:52]} Ke6 {[%emt 0:01:03]} 33. h4 {[%emt 0:01:36]} g6 {[%emt 0:03:26]} 34. g4 {[%emt 0:01:30]} Kd6 {[%emt 0:01:28]} 35. Kg3 Ke6 36. f4 Kd6 37. h5 Ke7 38. f5 g5 1/2-1/2

[Event "CZE-ch U14 2020"]
[Site "Kouty nad Desnou"]
[Date "2020.03.11"]
[Round "6.11"]
[White "Licka, Denis"]
[Black "Stocek, Martin"]
[Result "0-1"]
[ECO "B18"]
[WhiteElo "1594"]
[BlackElo "1772"]
[Annotator "NA RC"]
[PlyCount "88"]
[EventDate "2020.03.07"]
[EventCountry "CZE"]
[SourceTitle "playchess.com"]
[Source "ChessBase"]
[SourceQuality "1"]
[TimeControl "5400+30"]

1. e4 {[%emt 0:00:00]} c6 {[%emt 0:00:00]} 2. d4 {[%emt 0:00:00]} d5 {[%emt 0:00:00]} 3. Nd2 {[%emt 0:00:00]} dxe4 {[%emt 0:00:00]} 4. Nxe4 {[%emt 0:00:00]} Bf5 {[%emt 0:00:00]} 5. Ng3 {[%emt 0:00:00]} Bg6 {[%emt 0:00:00]} 6. h4 {[%emt 0:00:00]} h6 {[%emt 0:00:13]} 7. f4 {[%emt 0:00:04]} e6 {[%emt 0:02:43]} 8. h5 {[%emt 0:00:05]} Bh7 {[%emt 0:00:42]} 9. Bd3 {[%emt 0:00:11]} Qxd4 {[%emt 0:22:59]} 10. Nf3 {[%emt 0:00:50]} Bb4+ {[%emt 0:06:44]} 11. Ke2 {[%emt 0:22:10]} Bxd3+ {[%emt 0:02:57]} 12. Qxd3 {[%emt 0:00:28]} Qxd3+ {[%emt 0:00:10]} 13. Kxd3 {[%emt 0:00:17]} Nd7 {[%emt 0:01:17]} 14. f5 {[%emt 0:00:38]} e5 {[%emt 0:07:24]} 15. Ne4 {[%emt 0:02:11]} f6 {[%emt 0:06:13]} 16. c3 {[%emt 0:01:15]} Nc5+ {[%emt 0:04:52]} 17. Nxc5 {[%emt 0:05:07]} Bxc5 {[%emt 0:00:02]} 18. Be3 {[%emt 0:02:09]} O-O-O+ {[%emt 0:01:10]} 19. Ke2 {[%emt 0:00:15]} Bxe3 {[%emt 0:00:13]} 20. Kxe3 {[%emt 0:00:10]} Ne7 {[%emt 0:00:12]} 21. g4 {[%emt 0:00:58]} Nd5+ {[%emt 0:02:25]} 22. Kf2 {[%emt 0:01:03]} Rd7 {[%emt 0:01:01]} 23. Rad1 {[%emt 0:07:38]} Rhd8 {[%emt 0:01:39]} 24. Rd3 {[%emt 0:11:32]} Nf4 {[%emt 0:03:13]} 25. Rxd7 {[%emt 0:00:13]} Rxd7 {[%emt 0:00:10]} 26. Ke3 {[%emt 0:01:24]} Kc7 {[%emt 0:03:23]} 27. Rh2 {[%emt 0:02:16]} Rd3+ {[%emt 0:05:24]} 28. Ke4 {[%emt 0:00:22]} Rd1 {[%emt 0:01:57]} 29. Rd2 {[%emt 0:00:39]} Rf1 {[%emt 0:05:08]} 30. Ke3 {[%emt 0:11:30]} Nh3 {[%emt 0:07:24]} 31. Rg2 {[%emt 0:06:37]} Ng5 {[%emt 0:07:16]} 32. Nxg5 {[%emt 0:01:47]} hxg5 {[%emt 0:06:38]} 33. Kd3 {[%emt 0:06:31]} Rd1+ {[%emt 0:00:31]} 34. Ke3 {[%emt 0:01:28]} a5 {[%emt 0:00:44]} 35. b3 {[%emt 0:00:29]} b5 {[%emt 0:01:29]} 36. Ke2 {[%emt 0:01:10]} Rd7 {[%emt 0:00:39]} 37. Rg3 {[%emt 0:01:19]} Kb6 {[%emt 0:00:40]} 38. Rd3 {[%emt 0:01:12]} Rxd3 {[%emt 0:00:15]} 39. Kxd3 {[%emt 0:00:05]} Kc5 {[%emt 0:00:39]} 40. a3 {[%emt 0:00:38]} Kd5 {[%emt 0:00:55]} 41. a4 {[%emt 0:06:29]} bxa4 {[%emt 0:00:34]} 42. bxa4 {[%emt 0:00:16]} Kc5 {[%emt 0:00:14]} 43. Kd2 {[%emt 0:02:38]} Kc4 {[%emt 0:00:10]} 44. Kc2 {[%emt 0:00:06]} c5 {[%emt 0:00:33]} 0-1

[Event "CZE-ch U14 2020"]
[Site "Kouty nad Desnou"]
[Date "2020.03.11"]
[Round "6.12"]
[White "Mrazek, Roman"]
[Black "Kanak, Matyas"]
[Result "1-0"]
[ECO "A45"]
[WhiteElo "1839"]
[BlackElo "1499"]
[Annotator "NA RC"]
[PlyCount "45"]
[EventDate "2020.03.07"]
[EventCountry "CZE"]
[SourceTitle "playchess.com"]
[Source "ChessBase"]
[SourceQuality "1"]
[TimeControl "5400+30"]

{[%evp 8,45,1,1,5,9,56,38,207,168,200,156,158,179,253,236,254,194,193,181,241,215,354,374,489,444,905,932,1008,1108,1160,1052,981,1027,1624,1933,1673,2392,29992,1950]} 1. d4 {[%emt 0:00:00]} Nf6 {[%emt 0:00:00]} 2. Bf4 {[%emt 0:00:00]} e6 {[%emt 0:00:00]} 3. e3 {[%emt 0:00:13]} b6 {[%emt 0:00:02]} 4. Nd2 {[%emt 0:00:23]} Bb7 {[%emt 0:00:27]} 5. Ngf3 {[%emt 0:00:22]} c5 {[%emt 0:00:15]} 6. Nc4 {[%emt 0:01:33] [#]} d6 $146 {[%emt 0:02:19] A47: 1 d4 Nf6 2 Nf3 b6: Torre, London and Colle Systems.} (6... Nc6 $11) ({Predecessor:} 6... d5 7. Nce5 Bd6 8. Bb5+ Ke7 9. Ng5 Rf8 10. O-O a6 11. Be2 h6 12. Ngf3 Nc6 13. dxc5 bxc5 14. c4 Nxe5 15. Bxe5 Bxe5 16. Nxe5 {½-½ (57) Nguyen,N (2630)-Socko,B (2593) Riadh 2017}) 7. dxc5 {[%emt 0:01:15]} dxc5 $2 {[%emt 0:10:43]} (7... e5 $14) 8. Qxd8+ {[%emt 0:01:08]} Kxd8 {[%emt 0:00:06]} 9. Nce5 {[%emt 0:01:23]} Ke7 {[%emt 0:04:03]} 10. Ng5 {[%emt 0:01:32]} h6 {[%emt 0:03:04]} (10... Nbd7 $142) 11. Ngxf7 {[%emt 0:01:07]} Rg8 {[%emt 0:00:16]} 12. Rd1 {[%emt 0:01:14]} g5 {[%emt 0:00:32]} 13. Bg3 {[%emt 0:01:18]} Bg7 {[%emt 0:04:16]} 14. Nd6 {[%emt 0:00:43]} Bd5 {[%emt 0:00:12]} (14... Be4 $142 15. h4 Bxc2) 15. Ng6+ {[%emt 0:01:12]} Kd7 {[%emt 0:00:35]} 16. c4 {[%emt 0:00:44]} Nh5 {[%emt 0:00:46]} (16... Bc6 $142 17. Be2 Kd8 18. Nb5+ Nbd7 19. Bc7+ Kc8 20. Ne7+ {[%mdl 64] Double Attack} Kb7) 17. cxd5 {[%emt 0:00:53]} Nxg3 {[%emt 0:00:08]} 18. dxe6+ {[%emt 0:00:24]} Kxe6 {[%emt 0:00:15]} 19. Bc4+ {[%emt 0:01:25]} Kf6 {[%emt 0:00:12]} 20. hxg3 {[%emt 0:00:21]} Rd8 {[%emt 0:01:30]} 21. Ne4+ {[%emt 0:00:37] Discovered Attack} Kxg6 {[%emt 0:00:18]} 22. Rxd8 {[%emt 0:00:17]} Bxb2 {[%emt 0:00:40]} 23. Bd5 $18 {[%emt 0:00:02]} (23. Rd6+ $142 Kg7 24. Rhxh6 Kf8 25. Rd8+ Kg7 26. Rhd6 Nc6 27. Rxa8 Ne7 28. Rxa7) 1-0

[Event "CZE-ch U14 2020"]
[Site "Kouty nad Desnou"]
[Date "2020.03.12"]
[Round "7.7"]
[White "Werner, Hong Quan Dan"]
[Black "Prochazka, Vojtech"]
[Result "0-1"]
[ECO "B98"]
[WhiteElo "1801"]
[BlackElo "1763"]
[Annotator "NA"]
[PlyCount "56"]
[EventDate "2020.03.07"]
[EventCountry "CZE"]
[SourceTitle "playchess.com"]
[Source "ChessBase"]
[SourceQuality "1"]
[TimeControl "5400+30"]

{[%evp 16,52,27,0,39,22,42,13,31,0,27,0,24,-51,-36,-54,-50,-62,-55,-92,-87,-91,-107,-101,-111,-381,-412,-636,32767,-584,-674,-1333,-1433,-1351,-441,-1358,-1630,-1900,-2476]} 1. e4 {[%emt 0:00:00]} c5 {[%emt 0:00:00]} 2. Nf3 {[%emt 0:00:00]} d6 {[%emt 0:00:11]} 3. d4 {[%emt 0:00:14]} cxd4 {[%emt 0:01:07]} 4. Nxd4 {[%emt 0:00:11]} Nf6 {[%emt 0:00:33]} 5. Nc3 {[%emt 0:00:07]} a6 {[%emt 0:00:51]} 6. Bg5 {[%emt 0:00:22]} e6 {[%emt 0:03:45]} 7. f4 {[%emt 0:00:10]} Be7 {[%emt 0:02:12]} 8. Qf3 {[%emt 0:00:23]} Qc7 {[%emt 0:02:00]} 9. g4 {[%emt 0:02:38]} Nbd7 {[%emt 0:13:52]} 10. O-O-O {[%emt 0:00:19]} b5 {[%emt 0:01:14]} 11. Bxf6 {[%emt 0:01:16]} Nxf6 {[%emt 0:01:02]} 12. g5 {[%emt 0:00:12]} Nd7 {[%emt 0:00:09]} 13. f5 {[%emt 0:00:27]} O-O {[%emt 0:02:34] 13...Nc5 is not played anymore. B99: Sicilian Najdorf: 6 Bg5 e6 7 f4 Be7 8 Qf3 Qc7 9 0-0-0 Nbd7.} 14. Qh5 {[%emt 0:08:15]} ({Much weaker is} 14. f6 gxf6 15. gxf6 Nxf6 $17) (14. fxe6 $11 fxe6 15. Nxe6 Rxf3 16. Nxc7) 14... b4 $1 {[%emt 0:15:23]} 15. Nce2 {[%emt 0:32:22]} e5 {[%emt 0:19:28]} 16. f6 {[%emt 0:02:00] [#]} Bxf6 $146 {[%emt 0:04:39]} ({Predecessor:} 16... exd4 17. fxe7 Re8 18. Nf4 Ne5 19. Nd5 Qc5 20. Rg1 Kh8 21. Kb1 Be6 22. Rg3 a5 {½-½ (46) Maikov,E-Roth Jr,P (1786) ICCF email 2017}) 17. Nf5 {[%emt 0:08:54] [#]} Bd8 $1 {[%emt 0:11:51]} ({Worse is} 17... g6 18. Qh6 $16) 18. Rd3 {[%emt 0:00:56] [#]} Re8 $1 {[%emt 0:08:33]} 19. Nxd6 {[%emt 0:01:05] [#]} ({Don't blunder} 19. Rxd6 $2 Nc5 $19) 19... Nc5 {[%emt 0:00:47]} ({Black should play} 19... Rf8 $1 $19 20. Nf5 Qb6) 20. Rf3 $2 {[%emt 0:08:00]} (20. Nxe8 $17 Nxd3+ 21. Kb1) 20... Rf8 {[%emt 0:01:33]} 21. Nxc8 {[%emt 0:12:44]} (21. Nxf7 $142 Rxf7 22. Rxf7 Qxf7 23. Qxf7+ Kxf7 24. h4) 21... Rxc8 {[%emt 0:00:21]} 22. c3 {[%emt 0:01:08]} Nxe4 {[%emt 0:00:44]} 23. Rg1 {[%emt 0:00:50]} Qd6 {[%emt 0:01:41]} 24. Bh3 {[%emt 0:11:04]} Qd2+ {[%emt 0:01:30]} 25. Kb1 {[%emt 0:00:04]} Qxe2 {[%emt 0:00:20]} 26. Bf5 {[%emt 0:03:53] [#]} g6 $19 {[%emt 0:00:49] Double Attack} 27. Qh6 {[%emt 0:02:20]} Nd2+ {[%emt 0:02:16]} 28. Kc1 {[%emt 0:00:14]} Nxf3 0-1

[Event "CZE-ch U14 2020"]
[Site "Kouty nad Desnou"]
[Date "2020.03.12"]
[Round "7.8"]
[White "Richter, Rudolf"]
[Black "Tajovsky, Simon"]
[Result "1/2-1/2"]
[ECO "A30"]
[WhiteElo "1555"]
[BlackElo "1512"]
[Annotator "NA"]
[PlyCount "92"]
[EventDate "2020.03.07"]
[EventCountry "CZE"]
[SourceTitle "playchess.com"]
[Source "ChessBase"]
[SourceQuality "1"]
[TimeControl "5400+30"]

1. Nf3 {[%emt 0:00:00]} Nf6 {[%emt 0:00:00]} 2. c4 {[%emt 0:00:00]} c5 {[%emt 0:00:00]} 3. g3 {[%emt 0:01:06]} b6 {[%emt 0:01:30]} 4. Bg2 {[%emt 0:01:32]} Bb7 {[%emt 0:00:19]} 5. Nc3 {[%emt 0:00:41]} e6 {[%emt 0:00:36]} 6. O-O {[%emt 0:01:31]} Be7 {[%emt 0:00:38]} 7. Re1 {[%emt 0:00:42]} O-O {[%emt 0:00:52]} 8. e4 {[%emt 0:00:24]} d6 {[%emt 0:01:19]} 9. d4 {[%emt 0:00:28]} cxd4 {[%emt 0:00:45]} 10. Nxd4 {[%emt 0:02:43]} a6 {[%emt 0:00:25]} 11. e5 {[%emt 0:11:53]} dxe5 {[%emt 0:07:08]} 12. Bxb7 {[%emt 0:00:09]} Ra7 {[%emt 0:01:22]} 13. Nc6 {[%emt 0:04:35]} Qxd1 {[%emt 0:01:30]} 14. Nxe7+ {[%emt 0:01:59]} Kh8 {[%emt 0:00:07]} 15. Rxd1 {[%emt 0:01:25]} Rxb7 {[%emt 0:00:07]} 16. Ned5 {[%emt 0:00:23]} exd5 {[%emt 0:00:16]} 17. cxd5 {[%emt 0:01:34]} Rd7 {[%emt 0:01:56]} 18. Bg5 {[%emt 0:04:18]} Rfd8 {[%emt 0:03:15]} 19. Rd2 {[%emt 0:09:15]} Nc6 {[%emt 0:04:54]} 20. Bxf6 {[%emt 0:04:32]} gxf6 {[%emt 0:00:11]} 21. Rad1 {[%emt 0:05:43]} Nd4 {[%emt 0:01:29]} 22. Kg2 {[%emt 0:02:20]} Kg7 {[%emt 0:03:43]} 23. f3 {[%emt 0:09:25]} b5 {[%emt 0:03:27]} 24. b4 {[%emt 0:03:41]} Rc7 {[%emt 0:02:06]} 25. Rd3 {[%emt 0:08:54]} Kg6 {[%emt 0:07:13]} 26. Kf2 {[%emt 0:02:01]} Rdc8 {[%emt 0:03:41]} 27. Ne2 {[%emt 0:02:35]} Rc2 {[%emt 0:03:15]} 28. R1d2 {[%emt 0:04:07]} Rxd2 {[%emt 0:01:35]} 29. Rxd2 {[%emt 0:00:20]} Rc2 {[%emt 0:01:19]} 30. Rxc2 {[%emt 0:05:15]} Nxc2 {[%emt 0:00:10]} 31. a3 {[%emt 0:01:30]} f5 {[%emt 0:01:25]} 32. Nc1 {[%emt 0:02:24]} Nxa3 {[%emt 0:02:18]} 33. Nd3 {[%emt 0:01:27]} Kf6 {[%emt 0:03:38]} 34. Nc5 {[%emt 0:02:40]} Nc2 {[%emt 0:01:05]} 35. Nxa6 {[%emt 0:00:21]} Ke7 {[%emt 0:00:10]} 36. Nc7 {[%emt 0:02:15]} Nxb4 {[%emt 0:01:07]} 37. Nxb5 {[%emt 0:00:27]} Nxd5 {[%emt 0:00:16]} 38. Na3 {[%emt 0:00:44]} Ke6 {[%emt 0:00:47]} 39. Nc4 {[%emt 0:00:46]} f4 {[%emt 0:01:58]} 40. gxf4 {[%emt 0:00:44]} Nxf4 {[%emt 0:00:07]} 41. Ne3 {[%emt 0:00:24]} f5 {[%emt 0:00:19]} 42. Kg3 {[%emt 0:01:08]} h6 {[%emt 0:01:17]} 43. h3 {[%emt 0:01:12]} Nd5 {[%emt 0:01:53]} 44. Ng2 {[%emt 0:01:49]} e4 {[%emt 0:00:53]} 45. fxe4 {[%emt 0:00:00]} fxe4 {[%emt 0:00:00]} 46. Kh4 {[%emt 0:00:00]} Kf6 {[%emt 0:00:00]} 1/2-1/2